[Event "*** Titled Tuesday Blitz"]
[Site "Chess.com"]
[Date "2019.03.05"]
[Round "3"]
[White "GMMatamoros"]
[Black "Gubajdullin"]
[Result "1/2-1/2"]
[WhiteElo "2541"]
[BlackElo "2474"]
[TimeControl "180+2"]
[EndTime "13:46:23 PST"]
[Termination "Game drawn by 50-move rule"]

1. Nf3 {[%clk 0:03:01.9]} 1... d5 {[%clk 0:02:59.1]} 2. e3 {[%clk 0:03:00.5]}
2... c6 {[%clk 0:02:59]} 3. c4 {[%clk 0:03:01.3]} 3... Nf6 {[%clk 0:02:59.1]} 4.
Nc3 {[%clk 0:03:02.2]} 4... a6 {[%clk 0:02:59.6]} 5. d4 {[%clk 0:02:45.9]} 5...
Bg4 {[%clk 0:02:59.3]} 6. cxd5 {[%clk 0:02:31.3]} 6... cxd5 {[%clk 0:02:58.9]}
7. Qb3 {[%clk 0:02:32.2]} 7... Ra7 {[%clk 0:02:34]} 8. Ne5 {[%clk 0:02:31.4]}
8... e6 {[%clk 0:02:24.1]} 9. h3 {[%clk 0:02:09.4]} 9... Bf5 {[%clk 0:02:21.1]}
10. g4 {[%clk 0:02:10]} 10... Bg6 {[%clk 0:02:20.8]} 11. h4 {[%clk 0:02:10.9]}
11... Nfd7 {[%clk 0:01:55.5]} 12. h5 {[%clk 0:02:03.5]} 12... Nxe5 {[%clk
0:01:55]} 13. dxe5 {[%clk 0:01:58.4]} 13... Be4 {[%clk 0:01:55.6]} 14. Nxe4
{[%clk 0:01:57.9]} 14... dxe4 {[%clk 0:01:55.8]} 15. Bg2 {[%clk 0:01:53.1]}
15... Nc6 {[%clk 0:01:51.7]} 16. Bxe4 {[%clk 0:01:36.7]} 16... Nxe5 {[%clk
0:01:16.8]} 17. Bxb7 {[%clk 0:01:04.8]} 17... Bb4+ {[%clk 0:01:02.9]} 18. Ke2
{[%clk 0:00:54.9]} 18... Rxb7 {[%clk 0:01:02.3]} 19. a3 {[%clk 0:00:55.9]} 19...
Ba5 {[%clk 0:00:48.1]} 20. Qa4+ {[%clk 0:00:44.5]} 20... Qd7 {[%clk 0:00:47.9]}
21. Qxd7+ {[%clk 0:00:35.4]} 21... Kxd7 {[%clk 0:00:48.2]} 22. b4 {[%clk
0:00:35.9]} 22... Bb6 {[%clk 0:00:39.4]} 23. h6 {[%clk 0:00:26.1]} 23... gxh6
{[%clk 0:00:36.6]} 24. Bb2 {[%clk 0:00:24.2]} 24... f6 {[%clk 0:00:36.7]} 25.
Rxh6 {[%clk 0:00:21.4]} 25... Nxg4 {[%clk 0:00:33.6]} 26. Rh4 {[%clk 0:00:20.9]}
26... h5 {[%clk 0:00:34.3]} 27. Rah1 {[%clk 0:00:14.5]} 27... Rc8 {[%clk
0:00:33]} 28. Rd1+ {[%clk 0:00:10.6]} 28... Ke7 {[%clk 0:00:32.6]} 29. Rxh5
{[%clk 0:00:11.8]} 29... Rc2+ {[%clk 0:00:31]} 30. Rd2 {[%clk 0:00:12.8]} 30...
Rxd2+ {[%clk 0:00:29.2]} 31. Kxd2 {[%clk 0:00:14.7]} 31... Rd7+ {[%clk
0:00:29.4]} 32. Ke2 {[%clk 0:00:15.6]} 32... e5 {[%clk 0:00:26.2]} 33. Rh8
{[%clk 0:00:14.6]} 33... a5 {[%clk 0:00:24.6]} 34. Bc3 {[%clk 0:00:14.4]} 34...
axb4 {[%clk 0:00:24.4]} 35. Bxb4+ {[%clk 0:00:15.4]} 35... Kf7 {[%clk
0:00:25.3]} 36. a4 {[%clk 0:00:16.6]} 36... Ra7 {[%clk 0:00:24.6]} 37. Rh7+
{[%clk 0:00:17]} 37... Ke6 {[%clk 0:00:24.1]} 38. Rxa7 {[%clk 0:00:18.2]} 38...
Bxa7 {[%clk 0:00:24.3]} 39. Bd2 {[%clk 0:00:19.5]} 39... f5 {[%clk 0:00:22.9]}
40. f3 {[%clk 0:00:20.5]} 40... Nf6 {[%clk 0:00:23.7]} 41. Kd3 {[%clk
0:00:21.6]} 41... Kd5 {[%clk 0:00:21.9]} 42. Bc3 {[%clk 0:00:20.7]} 42... Nd7
{[%clk 0:00:21.2]} 43. e4+ {[%clk 0:00:21.5]} 43... fxe4+ {[%clk 0:00:21.1]} 44.
fxe4+ {[%clk 0:00:23.4]} 44... Kc6 {[%clk 0:00:21.7]} 45. Kc4 {[%clk 0:00:23.9]}
45... Nb6+ {[%clk 0:00:22.5]} 46. Kb3 {[%clk 0:00:24.6]} 46... Bb8 {[%clk
0:00:23.2]} 47. a5 {[%clk 0:00:25.2]} 47... Nd7 {[%clk 0:00:24]} 48. Kc4 {[%clk
0:00:26.8]} 48... Nc5 {[%clk 0:00:23.8]} 49. a6 {[%clk 0:00:28]} 49... Nxa6
{[%clk 0:00:19.6]} 50. Bb2 {[%clk 0:00:24.7]} 50... Nc5 {[%clk 0:00:19.4]} 51.
Bxe5 {[%clk 0:00:25.5]} 51... Bxe5 {[%clk 0:00:17.8]} 52. Kb4 {[%clk 0:00:25.4]}
52... Nxe4 {[%clk 0:00:18.2]} 53. Kc4 {[%clk 0:00:26.5]} 53... Nd6+ {[%clk
0:00:18.8]} 54. Kd3 {[%clk 0:00:27.6]} 54... Kd5 {[%clk 0:00:19.8]} 55. Ke3
{[%clk 0:00:28.7]} 55... Kc4 {[%clk 0:00:20.4]} 56. Ke2 {[%clk 0:00:28.6]} 56...
Kd4 {[%clk 0:00:20.9]} 57. Kf3 {[%clk 0:00:29.6]} 57... Kd3 {[%clk 0:00:21.7]}
58. Kg4 {[%clk 0:00:29.5]} 58... Ke2 {[%clk 0:00:20.8]} 59. Kh3 {[%clk
0:00:29.5]} 59... Kf1 {[%clk 0:00:21.2]} 60. Kg4 {[%clk 0:00:30.6]} 60... Kg2
{[%clk 0:00:21.8]} 61. Kg5 {[%clk 0:00:31.6]} 61... Kg3 {[%clk 0:00:22.4]} 62.
Kh5 {[%clk 0:00:32.5]} 62... Kh3 {[%clk 0:00:23]} 63. Kg5 {[%clk 0:00:33.3]}
63... Kg3 {[%clk 0:00:23.9]} 64. Kh5 {[%clk 0:00:34.5]} 64... Bf6 {[%clk
0:00:24.8]} 65. Kg6 {[%clk 0:00:34.6]} 65... Be7 {[%clk 0:00:25.8]} 66. Kh5
{[%clk 0:00:35]} 66... Kh3 {[%clk 0:00:26.7]} 67. Kg6 {[%clk 0:00:36.2]} 67...
Kg4 {[%clk 0:00:27.6]} 68. Kh6 {[%clk 0:00:37.3]} 68... Kf5 {[%clk 0:00:26.3]}
69. Kh5 {[%clk 0:00:38]} 69... Ne4 {[%clk 0:00:26.1]} 70. Kh6 {[%clk 0:00:38.4]}
70... Bf6 {[%clk 0:00:21.6]} 71. Kh5 {[%clk 0:00:39.1]} 71... Ng3+ {[%clk
0:00:22]} 72. Kh6 {[%clk 0:00:39.9]} 72... Be5 {[%clk 0:00:22.2]} 73. Kh7 {[%clk
0:00:39.7]} 73... Kg5 {[%clk 0:00:22.6]} 74. Kg8 {[%clk 0:00:39.6]} 74... Nf5
{[%clk 0:00:21.2]} 75. Kf7 {[%clk 0:00:40.3]} 75... Bf4 {[%clk 0:00:21.1]} 76.
Ke6 {[%clk 0:00:41.2]} 76... Kg6 {[%clk 0:00:20.8]} 77. Kd5 {[%clk 0:00:41.5]}
77... Kf6 {[%clk 0:00:20.5]} 78. Ke4 {[%clk 0:00:42.6]} 78... Be5 {[%clk
0:00:21.3]} 79. Kd5 {[%clk 0:00:43.8]} 79... Ne7+ {[%clk 0:00:22.3]} 80. Ke4
{[%clk 0:00:43.2]} 80... Ke6 {[%clk 0:00:23]} 81. Kf3 {[%clk 0:00:44.2]} 81...
Kf5 {[%clk 0:00:23.8]} 82. Ke3 {[%clk 0:00:45.1]} 82... Nc6 {[%clk 0:00:23.8]}
83. Kf3 {[%clk 0:00:46]} 83... Nb4 {[%clk 0:00:24.3]} 84. Ke3 {[%clk 0:00:47.2]}
84... Bc3 {[%clk 0:00:23.3]} 85. Kf3 {[%clk 0:00:48.1]} 85... Bd2 {[%clk
0:00:24.1]} 86. Kg3 {[%clk 0:00:48.1]} 86... Bf4+ {[%clk 0:00:24.2]} 87. Kf3
{[%clk 0:00:49]} 87... Nc6 {[%clk 0:00:25]} 88. Kg2 {[%clk 0:00:49]} 88... Ne5
{[%clk 0:00:25.7]} 89. Kf2 {[%clk 0:00:50.1]} 89... Kg4 {[%clk 0:00:25.2]} 90.
Kg2 {[%clk 0:00:51.3]} 90... Bg3 {[%clk 0:00:25.1]} 91. Kh1 {[%clk 0:00:51.6]}
91... Kf3 {[%clk 0:00:20.2]} 92. Kg1 {[%clk 0:00:50.6]} 92... Nd3 {[%clk
0:00:18.8]} 93. Kh1 {[%clk 0:00:51.3]} 93... Nf4 {[%clk 0:00:19]} 94. Kg1 {[%clk
0:00:52.3]} 94... Nd3 {[%clk 0:00:14.3]} 95. Kh1 {[%clk 0:00:50.4]} 95... Nf2+
{[%clk 0:00:14]} 96. Kg1 {[%clk 0:00:50.7]} 96... Bf4 {[%clk 0:00:14.7]} 97. Kf1
{[%clk 0:00:51.8]} 97... Bh2 {[%clk 0:00:15.1]} 98. Ke1 {[%clk 0:00:52.9]} 98...
Ne4 {[%clk 0:00:14.9]} 99. Kf1 {[%clk 0:00:54]} 99... Nd2+ {[%clk 0:00:15.7]}
100. Ke1 {[%clk 0:00:55.3]} 100... Ke3 {[%clk 0:00:16.6]} 101. Kd1 {[%clk
0:00:55.7]} 101... Kd3 {[%clk 0:00:17.4]} 102. Ke1 {[%clk 0:00:56.7]} 102...
Bg3+ {[%clk 0:00:17.3]} 103. Kd1 {[%clk 0:00:57.9]} 103... Bh4 {[%clk
0:00:17.4]} 104. Kc1 {[%clk 0:00:57.4]} 104... Kc3 {[%clk 0:00:17.9]} 105. Kd1
{[%clk 0:00:58.3]} 105... Kd3 {[%clk 0:00:18.9]} 106. Kc1 {[%clk 0:00:59.5]}
106... Nb3+ {[%clk 0:00:19.7]} 107. Kd1 {[%clk 0:01:00.3]} 107... Nd4 {[%clk
0:00:20.2]} 108. Kc1 {[%clk 0:01:00.5]} 108... Be1 {[%clk 0:00:19.9]} 109. Kd1
{[%clk 0:01:01.3]} 109... Bb4 {[%clk 0:00:20.3]} 110. Kc1 {[%clk 0:01:02.3]}
110... Ke2 {[%clk 0:00:20.3]} 111. Kb2 {[%clk 0:01:03.4]} 111... Kd2 {[%clk
0:00:20.8]} 112. Kb1 {[%clk 0:01:03.9]} 1/2-1/2

[Event "*** Titled Tuesday Blitz"]
[Site "Chess.com"]
[Date "2019.03.05"]
[Round "3"]
[White "Mbneu"]
[Black "StoreySniper"]
[Result "1/2-1/2"]
[WhiteElo "2239"]
[BlackElo "2373"]
[TimeControl "180+2"]
[EndTime "13:46:43 PST"]
[Termination "Game drawn by repetition"]

1. d4 {[%clk 0:03:01.9]} 1... g6 {[%clk 0:03:00.4]} 2. f4 {[%clk 0:03:01.1]}
2... Bg7 {[%clk 0:02:59.4]} 3. Nf3 {[%clk 0:03:01.1]} 3... c5 {[%clk 0:03:00]}
4. e3 {[%clk 0:03:00.1]} 4... cxd4 {[%clk 0:02:59.5]} 5. exd4 {[%clk 0:03:00.6]}
5... d5 {[%clk 0:03:01.4]} 6. Bd3 {[%clk 0:02:57.9]} 6... Nh6 {[%clk 0:03:00]}
7. Ne5 {[%clk 0:02:55.8]} 7... O-O {[%clk 0:02:55]} 8. O-O {[%clk 0:02:55.8]}
8... Nc6 {[%clk 0:02:51.6]} 9. c3 {[%clk 0:02:56.1]} 9... Bf5 {[%clk 0:02:52.2]}
10. Kh1 {[%clk 0:02:51.2]} 10... Bxd3 {[%clk 0:02:50.7]} 11. Qxd3 {[%clk
0:02:51.5]} 11... e6 {[%clk 0:02:48.7]} 12. Be3 {[%clk 0:02:48.4]} 12... Nf5
{[%clk 0:02:48.8]} 13. Nd2 {[%clk 0:02:47.3]} 13... Nxe5 {[%clk 0:02:39.4]} 14.
fxe5 {[%clk 0:02:46.1]} 14... Nxe3 {[%clk 0:02:35.3]} 15. Qxe3 {[%clk
0:02:46.2]} 15... Qb6 {[%clk 0:02:25.3]} 16. Nb3 {[%clk 0:02:33.6]} 16... Qb5
{[%clk 0:02:21.5]} 17. Rf2 {[%clk 0:02:31.7]} 17... b6 {[%clk 0:02:17.1]} 18.
Raf1 {[%clk 0:02:30.7]} 18... a5 {[%clk 0:02:17.9]} 19. Nc1 {[%clk 0:02:28.8]}
19... Ra7 {[%clk 0:02:09.7]} 20. h4 {[%clk 0:02:27.7]} 20... h5 {[%clk
0:02:06.5]} 21. Nd3 {[%clk 0:02:12.9]} 21... Qe8 {[%clk 0:01:58.9]} 22. Qg3
{[%clk 0:02:07.6]} 22... Bh6 {[%clk 0:01:55.9]} 23. Nf4 {[%clk 0:02:07.5]} 23...
Kh7 {[%clk 0:01:51.3]} 24. Nh3 {[%clk 0:02:06.2]} 24... Qe7 {[%clk 0:01:48]} 25.
Rf6 {[%clk 0:02:02.3]} 25... b5 {[%clk 0:01:40]} 26. Ng5+ {[%clk 0:01:51.7]}
26... Bxg5 {[%clk 0:01:41.2]} 27. hxg5 {[%clk 0:01:51.6]} 27... b4 {[%clk
0:01:37.1]} 28. Qf3 {[%clk 0:01:46.4]} 28... bxc3 {[%clk 0:01:28.6]} 29. bxc3
{[%clk 0:01:45.5]} 29... Rc7 {[%clk 0:01:26.6]} 30. g4 {[%clk 0:01:46.5]} 30...
hxg4 {[%clk 0:01:23.8]} 31. Qf2 {[%clk 0:01:34.7]} 31... Kg7 {[%clk 0:01:20]}
32. Kg1 {[%clk 0:01:32.5]} 32... Rxc3 {[%clk 0:01:14]} 33. Qh4 {[%clk
0:01:32.7]} 33... Rh3 {[%clk 0:01:06.5]} 34. Qxg4 {[%clk 0:01:29.8]} 34... Qa3
{[%clk 0:00:53.2]} 35. R6f3 {[%clk 0:01:22.9]} 35... Rxf3 {[%clk 0:00:50.7]} 36.
Qxf3 {[%clk 0:01:21.4]} 36... Qxa2 {[%clk 0:00:45.8]} 37. Rf2 {[%clk 0:01:20.6]}
37... Qa1+ {[%clk 0:00:45.9]} 38. Kh2 {[%clk 0:01:16]} 38... Rh8+ {[%clk
0:00:41.3]} 39. Kg3 {[%clk 0:01:15.7]} 39... Qg1+ {[%clk 0:00:38.2]} 40. Rg2
{[%clk 0:01:14.3]} 40... Qe1+ {[%clk 0:00:27.7]} 41. Rf2 {[%clk 0:01:13.9]}
41... Qg1+ {[%clk 0:00:22]} 42. Rg2 {[%clk 0:01:14.5]} 42... Qh1 {[%clk
0:00:20.2]} 43. Qf6+ {[%clk 0:01:13.6]} 43... Kg8 {[%clk 0:00:20.7]} 44. Qd8+
{[%clk 0:01:12.2]} 44... Kg7 {[%clk 0:00:21.2]} 45. Qf6+ {[%clk 0:01:13]} 45...
Kg8 {[%clk 0:00:22.6]} 46. Qd8+ {[%clk 0:00:55]} 46... Kh7 {[%clk 0:00:24.1]}
47. Qf6 {[%clk 0:00:46.4]} 47... Qe1+ {[%clk 0:00:23.4]} 48. Rf2 {[%clk
0:00:42]} 48... Rf8 {[%clk 0:00:20]} 49. Kg2 {[%clk 0:00:39.2]} 49... Qe4+
{[%clk 0:00:20.3]} 50. Kg3 {[%clk 0:00:39.8]} 50... Qe3+ {[%clk 0:00:19.1]} 51.
Kg2 {[%clk 0:00:40.5]} 51... Kg8 {[%clk 0:00:17.8]} 52. Rf4 {[%clk 0:00:39.1]}
52... Qe2+ {[%clk 0:00:18.4]} 53. Kg3 {[%clk 0:00:39.4]} 53... Qe1+ {[%clk
0:00:18.5]} 54. Kg2 {[%clk 0:00:39.9]} 54... Qd2+ {[%clk 0:00:19.3]} 55. Kg3
{[%clk 0:00:40.6]} 55... Qc3+ {[%clk 0:00:20.5]} 56. Kg2 {[%clk 0:00:41.5]}
56... Qc2+ {[%clk 0:00:21.4]} 57. Kg3 {[%clk 0:00:42.9]} 57... Qb3+ {[%clk
0:00:22.3]} 58. Kg2 {[%clk 0:00:44]} 58... Qa2+ {[%clk 0:00:23.8]} 59. Kg3
{[%clk 0:00:45.3]} 59... Qa3+ {[%clk 0:00:25.3]} 60. Kg2 {[%clk 0:00:46.6]}
60... Qb2+ {[%clk 0:00:26.1]} 61. Kg3 {[%clk 0:00:47.9]} 61... Qc3+ {[%clk
0:00:26.6]} 62. Kg2 {[%clk 0:00:49.3]} 62... Qd2+ {[%clk 0:00:27.7]} 63. Kg3
{[%clk 0:00:50.7]} 63... Qe1+ {[%clk 0:00:28.9]} 64. Kg2 {[%clk 0:00:51.7]}
64... a4 {[%clk 0:00:26.3]} 65. Rf1 {[%clk 0:00:47.1]} 65... Qe4+ {[%clk
0:00:25.8]} 66. Kg3 {[%clk 0:00:47.5]} 66... Qd3+ {[%clk 0:00:22.8]} 67. Kg2
{[%clk 0:00:46.1]} 67... Qe4+ {[%clk 0:00:18.3]} 68. Kg3 {[%clk 0:00:46.6]}
68... a3 {[%clk 0:00:17.7]} 69. Rf4 {[%clk 0:00:47.1]} 69... Qe3+ {[%clk
0:00:18]} 70. Kg2 {[%clk 0:00:48.3]} 70... Qe2+ {[%clk 0:00:17.8]} 71. Kh3
{[%clk 0:00:46.4]} 71... Qe3+ {[%clk 0:00:14.8]} 72. Kg2 {[%clk 0:00:47.6]}
72... Qd2+ {[%clk 0:00:15.5]} 73. Kh3 {[%clk 0:00:48.8]} 73... Qc3+ {[%clk
0:00:16.5]} 74. Kg2 {[%clk 0:00:49.9]} 74... Qc2+ {[%clk 0:00:15]} 75. Kh3
{[%clk 0:00:51.1]} 75... Qb3+ {[%clk 0:00:13.4]} 76. Kg2 {[%clk 0:00:51.6]}
76... a2 {[%clk 0:00:12.6]} 77. Rh4 {[%clk 0:00:51.6]} 77... Qc2+ {[%clk
0:00:13.6]} 78. Kf3 {[%clk 0:00:51.5]} 78... Qd3+ {[%clk 0:00:15]} 79. Kg2
{[%clk 0:00:52.2]} 79... Qe2+ {[%clk 0:00:15.9]} 80. Kh3 {[%clk 0:00:48.6]}
80... Qe3+ {[%clk 0:00:13.5]} 81. Kg2 {[%clk 0:00:49.3]} 81... Qd2+ {[%clk
0:00:08.4]} 82. Kh3 {[%clk 0:00:49.4]} 82... Qc3+ {[%clk 0:00:08.8]} 83. Kg2
{[%clk 0:00:50.1]} 83... Qb2+ {[%clk 0:00:10.1]} 84. Kh3 {[%clk 0:00:51]} 84...
Qa3+ {[%clk 0:00:10.7]} 85. Kg2 {[%clk 0:00:51.8]} 85... Qb2+ {[%clk 0:00:11.6]}
86. Kh3 {[%clk 0:00:53.1]} 86... Qc3+ {[%clk 0:00:13.5]} 87. Kg2 {[%clk
0:00:54.3]} 87... Qd2+ {[%clk 0:00:15.3]} 88. Kh3 {[%clk 0:00:55.5]} 88... Qd3+
{[%clk 0:00:16.5]} 89. Kg2 {[%clk 0:00:55.6]} 89... Qe2+ {[%clk 0:00:17.5]} 90.
Kh3 {[%clk 0:00:56.5]} 90... Qh5 {[%clk 0:00:10.8]} 91. Rxh5 {[%clk 0:00:53.4]}
91... gxh5 {[%clk 0:00:12.7]} 92. Qf1 {[%clk 0:00:44.3]} 92... Ra8 {[%clk
0:00:13.3]} 93. g6 {[%clk 0:00:37.2]} 93... fxg6 {[%clk 0:00:12]} 94. Qf6 {[%clk
0:00:37.5]} 94... a1=Q {[%clk 0:00:12.4]} 95. Qxg6+ {[%clk 0:00:37]} 95... Kf8
{[%clk 0:00:13.9]} 96. Qf6+ {[%clk 0:00:36.7]} 96... Ke8 {[%clk 0:00:15.1]} 97.
Qxe6+ {[%clk 0:00:37.7]} 97... Kd8 {[%clk 0:00:16.7]} 98. Qd6+ {[%clk 0:00:39]}
98... Kc8 {[%clk 0:00:18.1]} 99. Qc6+ {[%clk 0:00:40.1]} 99... Kb8 {[%clk
0:00:19.5]} 100. Qb6+ {[%clk 0:00:41.3]} 100... Kc8 {[%clk 0:00:19.3]} 101. Qc6+
{[%clk 0:00:42.5]} 101... Kd8 {[%clk 0:00:06.9]} 102. Qd6+ {[%clk 0:00:43.4]}
102... Ke8 {[%clk 0:00:06]} 103. Qe6+ {[%clk 0:00:44.2]} 103... Kd8 {[%clk
0:00:07.4]} 104. Qd6+ {[%clk 0:00:45.3]} 104... Ke8 {[%clk 0:00:08.4]} 105. Qe6+
{[%clk 0:00:46.5]} 105... Kf8 {[%clk 0:00:10.3]} 106. Qf6+ {[%clk 0:00:47.6]}
106... Kg8 {[%clk 0:00:11.9]} 107. Qg6+ {[%clk 0:00:48.7]} 107... Kf8 {[%clk
0:00:04.2]} 108. Qf6+ {[%clk 0:00:49.7]} 108... Kg8 {[%clk 0:00:05.6]} 109. Qg6+
{[%clk 0:00:50.9]} 109... Kh8 {[%clk 0:00:06.7]} 110. Qh6+ {[%clk 0:00:51.9]}
110... Kg8 {[%clk 0:00:08]} 111. Qg6+ {[%clk 0:00:53.1]} 111... Kf8 {[%clk
0:00:04]} 112. Qf6+ {[%clk 0:00:53.9]} 112... Ke8 {[%clk 0:00:04.5]} 113. Qe6+
{[%clk 0:00:54.7]} 1/2-1/2

[Event "*** Titled Tuesday Blitz"]
[Site "Chess.com"]
[Date "2019.03.05"]
[Round "4"]
[White "Ar4uha"]
[Black "GMMatamoros"]
[Result "1-0"]
[WhiteElo "2483"]
[BlackElo "2526"]
[TimeControl "180+2"]
[EndTime "13:50:06 PST"]
[Termination "Ar4uha won by resignation"]

1. e4 {[%clk 0:03:01.9]} 1... c5 {[%clk 0:02:56.9]} 2. Nf3 {[%clk 0:03:02.9]}
2... Nc6 {[%clk 0:02:57.2]} 3. Bb5 {[%clk 0:03:04.4]} 3... g6 {[%clk 0:02:57.6]}
4. Bxc6 {[%clk 0:03:03.9]} 4... bxc6 {[%clk 0:02:57.3]} 5. O-O {[%clk
0:03:03.7]} 5... Bg7 {[%clk 0:02:58.4]} 6. c3 {[%clk 0:03:04.8]} 6... Nf6 {[%clk
0:02:46.9]} 7. Re1 {[%clk 0:03:05.2]} 7... O-O {[%clk 0:02:46.7]} 8. d4 {[%clk
0:03:05]} 8... cxd4 {[%clk 0:02:44.5]} 9. cxd4 {[%clk 0:03:06.2]} 9... Rb8
{[%clk 0:02:40.3]} 10. Nc3 {[%clk 0:03:06.1]} 10... d6 {[%clk 0:02:41.3]} 11. h3
{[%clk 0:03:07]} 11... Nd7 {[%clk 0:02:40.4]} 12. e5 {[%clk 0:02:51.6]} 12...
dxe5 {[%clk 0:02:36.3]} 13. dxe5 {[%clk 0:02:53.5]} 13... Nxe5 {[%clk
0:02:34.8]} 14. Nxe5 {[%clk 0:02:52.2]} 14... Qxd1 {[%clk 0:02:35.2]} 15. Nxd1
{[%clk 0:02:54.1]} 15... Bb7 {[%clk 0:02:28.5]} 16. Nd7 {[%clk 0:02:52.6]} 1-0

[Event "*** Titled Tuesday Blitz"]
[Site "Chess.com"]
[Date "2019.03.05"]
[Round "4"]
[White "DonPreuss"]
[Black "Dare-Dare"]
[Result "1-0"]
[WhiteElo "2212"]
[BlackElo "2103"]
[TimeControl "180+2"]
[EndTime "13:52:16 PST"]
[Termination "DonPreuss won by checkmate"]

1. d4 {[%clk 0:02:59.1]} 1... d6 {[%clk 0:03:00.1]} 2. e4 {[%clk 0:03:00.5]}
2... e5 {[%clk 0:03:00.8]} 3. Nc3 {[%clk 0:03:02]} 3... Nf6 {[%clk 0:03:00.6]}
4. f4 {[%clk 0:03:01.9]} 4... exd4 {[%clk 0:03:01]} 5. Qxd4 {[%clk 0:03:03.8]}
5... Nc6 {[%clk 0:03:01.6]} 6. Qd1 {[%clk 0:03:05.4]} 6... Be7 {[%clk
0:03:02.7]} 7. Bd3 {[%clk 0:03:07]} 7... O-O {[%clk 0:03:03.4]} 8. Nf3 {[%clk
0:03:08.5]} 8... Re8 {[%clk 0:03:04.5]} 9. O-O {[%clk 0:03:10.1]} 9... Bf8
{[%clk 0:03:05.6]} 10. Qe1 {[%clk 0:03:09.9]} 10... Ne7 {[%clk 0:03:06.5]} 11.
e5 {[%clk 0:03:03.3]} 11... dxe5 {[%clk 0:03:05.5]} 12. fxe5 {[%clk 0:03:04.5]}
12... Nfd5 {[%clk 0:02:58.3]} 13. Bxh7+ {[%clk 0:02:46]} 13... Kxh7 {[%clk
0:03:00.2]} 14. Ng5+ {[%clk 0:02:47.3]} 14... Kg6 {[%clk 0:02:57.5]} 15. Qh4
{[%clk 0:02:28]} 15... Nf4 {[%clk 0:01:11.8]} 16. Qh7+ {[%clk 0:02:01.5]} 16...
Kxg5 {[%clk 0:01:10.9]} 17. Bxf4+ {[%clk 0:02:02.9]} 17... Kg4 {[%clk
0:01:11.3]} 18. Qh3# {[%clk 0:02:04.4]} 1-0

[Event "*** Titled Tuesday Blitz"]
[Site "Chess.com"]
[Date "2019.03.05"]
[Round "4"]
[White "Keaton87"]
[Black "SARGISMV"]
[Result "1-0"]
[WhiteElo "2549"]
[BlackElo "2424"]
[TimeControl "180+2"]
[EndTime "13:52:17 PST"]
[Termination "Keaton87 won by checkmate"]

1. Nf3 {[%clk 0:03:01.9]} 1... Nf6 {[%clk 0:03:00.2]} 2. d4 {[%clk 0:03:02.3]}
2... c5 {[%clk 0:03:00.4]} 3. d5 {[%clk 0:03:02.9]} 3... e6 {[%clk 0:03:00.9]}
4. c4 {[%clk 0:03:03.9]} 4... exd5 {[%clk 0:03:02.1]} 5. cxd5 {[%clk 0:03:05.8]}
5... Bd6 {[%clk 0:03:02.5]} 6. Nc3 {[%clk 0:03:06.6]} 6... O-O {[%clk 0:03:03]}
7. Bg5 {[%clk 0:03:07.4]} 7... a6 {[%clk 0:03:04.2]} 8. a4 {[%clk 0:03:07.9]}
8... Re8 {[%clk 0:03:04.8]} 9. e3 {[%clk 0:03:08.5]} 9... Bc7 {[%clk 0:03:05.9]}
10. Bd3 {[%clk 0:03:04.2]} 10... d6 {[%clk 0:03:06.8]} 11. O-O {[%clk
0:03:04.1]} 11... Nbd7 {[%clk 0:03:07.8]} 12. Qc2 {[%clk 0:03:04.2]} 12... h6
{[%clk 0:03:07.9]} 13. Bh4 {[%clk 0:03:03.4]} 13... Rb8 {[%clk 0:03:08.9]} 14.
Nd2 {[%clk 0:02:58.8]} 14... Ba5 {[%clk 0:02:57.1]} 15. e4 {[%clk 0:02:58.9]}
15... Ne5 {[%clk 0:02:54.2]} 16. f4 {[%clk 0:02:58.6]} 16... Ng6 {[%clk
0:02:52.9]} 17. Bg3 {[%clk 0:02:55.8]} 17... Nh5 {[%clk 0:02:48.5]} 18. e5
{[%clk 0:02:48.8]} 18... Nxg3 {[%clk 0:02:49.3]} 19. hxg3 {[%clk 0:02:48.3]}
19... dxe5 {[%clk 0:02:36.6]} 20. Bxg6 {[%clk 0:02:49.2]} 20... fxg6 {[%clk
0:02:38]} 21. Qxg6 {[%clk 0:02:41.3]} 21... exf4 {[%clk 0:02:08]} 22. Rxf4
{[%clk 0:02:35.1]} 22... Re7 {[%clk 0:01:48.7]} 23. Raf1 {[%clk 0:02:30.5]}
23... Bd7 {[%clk 0:01:28.8]} 24. Rf7 {[%clk 0:02:28.9]} 24... Rxf7 {[%clk
0:01:22.7]} 25. Rxf7 {[%clk 0:02:29.5]} 25... Qg5 {[%clk 0:01:20.3]} 26. Rxg7+
{[%clk 0:02:30.3]} 26... Kf8 {[%clk 0:01:21.6]} 27. Qf7# {[%clk 0:02:31.1]} 1-0

[Event "*** Titled Tuesday Blitz"]
[Site "Chess.com"]
[Date "2019.03.05"]
[Round "4"]
[White "Bryakin_Mikhail"]
[Black "A-Fier"]
[Result "1/2-1/2"]
[WhiteElo "2651"]
[BlackElo "2739"]
[TimeControl "180+2"]
[EndTime "13:52:50 PST"]
[Termination "Game drawn by agreement"]

1. d4 {[%clk 0:03:01.9]} 1... Nf6 {[%clk 0:03:00]} 2. c4 {[%clk 0:02:58]} 2...
c5 {[%clk 0:03:01.5]} 3. d5 {[%clk 0:02:58.5]} 3... e6 {[%clk 0:03:02.9]} 4. Nc3
{[%clk 0:02:58.6]} 4... exd5 {[%clk 0:03:04.6]} 5. cxd5 {[%clk 0:03:00.4]} 5...
d6 {[%clk 0:03:06.2]} 6. Nf3 {[%clk 0:03:01.2]} 6... g6 {[%clk 0:03:07.5]} 7. g3
{[%clk 0:03:02.6]} 7... Bg7 {[%clk 0:03:08.9]} 8. Bg2 {[%clk 0:03:04.2]} 8...
O-O {[%clk 0:03:10.5]} 9. O-O {[%clk 0:03:05.7]} 9... Re8 {[%clk 0:03:12.1]} 10.
Bf4 {[%clk 0:03:06.4]} 10... Bf5 {[%clk 0:03:11.4]} 11. Nd2 {[%clk 0:02:42]}
11... Nh5 {[%clk 0:03:09.2]} 12. e4 {[%clk 0:02:33.3]} 12... Nxf4 {[%clk
0:03:09.1]} 13. gxf4 {[%clk 0:02:35.2]} 13... Bc8 {[%clk 0:03:06.3]} 14. Nc4
{[%clk 0:02:29.2]} 14... Bxc3 {[%clk 0:03:07.3]} 15. bxc3 {[%clk 0:02:29.8]}
15... b5 {[%clk 0:03:09.2]} 16. Nd2 {[%clk 0:02:10.2]} 16... Qh4 {[%clk
0:03:09.5]} 17. Qf3 {[%clk 0:02:09.3]} 17... Nd7 {[%clk 0:03:05.6]} 18. a4
{[%clk 0:01:56.1]} 18... b4 {[%clk 0:02:58]} 19. Nc4 {[%clk 0:01:44.2]} 19...
Ba6 {[%clk 0:02:49.3]} 20. Nxd6 {[%clk 0:01:43.3]} 20... Bxf1 {[%clk 0:02:50.8]}
21. Bxf1 {[%clk 0:01:32.2]} 21... Qf6 {[%clk 0:02:41.8]} 22. Nxe8 {[%clk
0:01:30.4]} 22... Rxe8 {[%clk 0:02:43.7]} 23. Bb5 {[%clk 0:01:20]} 23... Rd8
{[%clk 0:02:15.7]} 24. Bxd7 {[%clk 0:01:19.2]} 24... Rxd7 {[%clk 0:02:17.6]} 25.
e5 {[%clk 0:01:17.9]} 25... Qf5 {[%clk 0:02:19]} 26. cxb4 {[%clk 0:01:13.3]}
26... cxb4 {[%clk 0:02:20.9]} 1/2-1/2